fUSD/lending_fUSD_20260121
["ID","MTS","AMOUNT","RATE_DAILY","PERIOD"]
[402995444,1769028649511,-500.0,0.00041095,2]
[402995445,1769028649520,-500.0,0.00041095,2]
[402995446,1769028649529,-157.722315,0.00041095,2]
[402995447,1769028649538,-500.0,0.00041095,2]
[402995448,1769028649547,-500.0,0.00041095,2]
[402995449,1769028649556,-500.0,0.00041095,2]
[402995450,1769028649564,-500.0,0.00041095,2]
[402995451,1769028649744,-500.0,0.00041095,2]
[402995452,1769028649754,-500.0,0.00041095,2]
[402995453,1769028649764,-229.33609387,0.00041095,2]
[402995454,1769028649773,-300.0,0.00041095,2]
[402995455,1769028649783,-300.0,0.00041095,2]
[402995456,1769028649792,-300.0,0.00041095,2]
[402995457,1769028649801,-300.0,0.00041095,2]
[402995458,1769028649810,-300.58340851,0.00041095,2]
[402995459,1769028649820,-300.0,0.00041095,2]
[402995460,1769028649828,-300.0,0.00041095,2]
[402995461,1769028649837,-300.0,0.00041095,2]
[402995462,1769028649846,-300.0,0.00041095,2]
[402995463,1769028649856,-300.0,0.00041095,2]
[402995464,1769028649864,-300.0,0.00041095,2]
[402995465,1769028649873,-300.0,0.00041095,2]
[402995466,1769028649882,-300.0,0.00041095,2]
[402995467,1769028649891,-300.0,0.00041095,2]
[402995468,1769028649901,-300.0,0.00041095,2]
[402995469,1769028649911,-300.0,0.00041095,2]
[402995470,1769028649920,-300.0,0.00041095,2]
[402995471,1769028649928,-300.0,0.00041095,2]
[402995472,1769028649937,-300.0,0.00041095,2]
[402995473,1769028649947,-300.0,0.00041095,2]
[402995474,1769028649956,-300.0,0.00041095,2]
[402995475,1769028649965,-300.0,0.00041095,2]
[402995476,1769028649974,-300.0,0.00041095,2]
[402995477,1769028649984,-302.84556108,0.00041095,2]
[402995478,1769028649993,-229.80762977,0.00041095,2]
[402995479,1769028650003,-500.0,0.00041095,2]
[402995480,1769028650012,-500.0,0.00041095,2]
[402995481,1769028650021,-500.0,0.00041095,2]
[402995482,1769028650030,-500.0,0.00041095,2]
[402995483,1769028650039,-500.0,0.00041095,2]
[402995484,1769028650049,-500.0,0.00041095,2]
[402995485,1769028650058,-500.0,0.00041095,2]
[402995486,1769028650069,-500.0,0.00041095,2]
[402995487,1769028650078,-500.0,0.00041095,2]
[402995488,1769028650087,-797.0,0.00041096,120]
[402995489,1769028650096,-264.53,0.00041096,120]
[402995490,1769028650105,-222.58,0.00041096,120]
[402995491,1769028650115,-160.0,0.000411,120]
[402995492,1769028650124,-185.56,0.000411,14]
[402995493,1769028650133,-715.18,0.000411,14]
[402995494,1769028650143,-210.78004,0.000411,21]
[402995495,1769028650152,-151.83,0.00041193,120]
[402995496,1769028650161,-153.0,0.000412,120]
[402995497,1769028650170,-1176.57622655,0.00041228,2]
[402995498,1769028650179,-824.0,0.00041257,11]
[402995499,1769028650188,-2500.0,0.00041264,10]
[402995500,1769028650198,-1000.0,0.00041264,10]
[402995501,1769028650207,-2006.18405255,0.00041264,10]
[402995502,1769028650217,-2500.0,0.00041264,10]
[402995503,1769028650226,-151.83,0.00041293,120]
[402995504,1769028650236,-500.0,0.00041369,120]
[402995505,1769028650245,-151.83,0.00041393,120]
[402995506,1769028650254,-300.220331,0.00041413,106]
[402995507,1769028650263,-508.0,0.00041425,90]
[402995508,1769028650272,-836.0,0.00041458,11]
[402995509,1769028650281,-151.8813268,0.00041493,120]
[402995510,1769028650290,-359.69,0.000415,30]
[402995511,1769028650299,-836.0,0.00041534,11]
[402995512,1769028650308,-836.0,0.00041605,11]
[402995513,1769028650317,-500.0,0.00041643,120]
[402995514,1769028650326,-797.0,0.00041644,120]
[402995515,1769028650335,-160.0,0.000417,120]
[402995516,1769028650344,-861.0,0.00041761,11]
[402995517,1769028650353,-15055.0,0.00041781,120]
[402995518,1769028650363,-154.03031195,0.00041797,96]
[402995519,1769028650372,-153.0,0.000418,120]
[402995520,1769028650381,-359.69,0.000418,30]
[402995521,1769028650391,-2400.02139476,0.00041812,10]
[402995522,1769028650400,-3000.0,0.00041812,10]
[402995523,1769028650409,-850.0,0.00041823,11]
[402995524,1769028650418,-1176.57622655,0.00041891,2]
[402995525,1769028650428,-500.0,0.00041899,30]
[402995526,1769028650437,-89843.44501773,0.000419,14]
[402995527,1769028650446,-964.02826068,0.000419,120]
[402995528,1769028650454,-964.02826068,0.000419,120]
[402995529,1769028650463,-964.02826068,0.000419,120]
[402995530,1769028650472,-964.02826068,0.000419,120]
[402995531,1769028650481,-964.02826068,0.000419,120]
[402995532,1769028650490,-964.02826068,0.000419,120]
[402995533,1769028650500,-500.0,0.00041917,120]
[402995534,1769028650513,-836.0,0.00041925,16]
[402995535,1769028650522,-342.0,0.00042,30]
[402995536,1769028650531,-354.19,0.00042,120]
[402995537,1769028650540,-110568.729994,0.00042,20]
[402995538,1769028650549,-2000.0,0.00042,120]
[402995539,1769028650558,-967.0,0.00042,10]
[402995540,1769028650566,-163.0,0.00042024,16]
[402995541,1769028650575,-2404.74333923,0.00042033,7]
[402995542,1769028650583,-322.0,0.00042133,16]
[402995543,1769028650592,-163.0,0.00042174,16]
[402995544,1769028650601,-500.0,0.00042191,120]
[402995545,1769028650609,-797.0,0.00042192,120]
[402995546,1769028650618,-152.0,0.00042195,4]
[402995547,1769028650627,-160.0,0.000422,120]
[402995548,1769028650636,-200.0,0.00042203,120]
[402995549,1769028650646,-836.0,0.00042203,16]
[402995550,1769028650655,-836.0,0.00042203,16]
[402995551,1769028650664,-4900.0,0.000423,15]
[402995552,1769028650674,-715.19,0.000423,14]
[402995553,1769028650683,-277.1903785,0.00042319,14]
[402995554,1769028650692,-163.0,0.0004232,16]
[402995555,1769028650702,-570.67630539,0.0004236,10]
[402995556,1769028650711,-153.0,0.000424,120]
[402995557,1769028650721,-900.0,0.000424,15]
[402995558,1769028650730,-500.0,0.00042465,120]
[402995559,1769028650741,-500.0,0.00042466,120]
[402995560,1769028650752,-500.0,0.00042499,30]
[402995561,1769028650762,-27779.82705815,0.000425,10]
[402995562,1769028650773,-715.18,0.000425,14]
[402995563,1769028650783,-900.0,0.000425,15]
[402995564,1769028650792,-500.0,0.00042521,120]
[402995565,1769028650801,-163.0,0.00042525,16]
[402995566,1769028650810,-1176.57622655,0.00042555,2]
[402995567,1769028650824,-152.0,0.00042566,10]
[402995568,1769028650835,-500.0,0.00042576,120]
[402995569,1769028650844,-900.0,0.000426,15]
[402995570,1769028650853,-500.0,0.0004263,120]
[402995571,1769028650863,-500.0,0.00042685,120]
[402995572,1769028650872,-2000.0,0.000427,2]
[402995573,1769028650881,-900.0,0.000427,15]
[402995574,1769028650890,-500.0,0.00042739,120]
[402995575,1769028650899,-797.0,0.0004274,120]
[402995576,1769028650908,-500.0,0.0004274,120]
[402995577,1769028650917,-836.0,0.00042752,16]
[402995578,1769028650927,-500.0,0.00042795,120]
[402995579,1769028650936,-160.0,0.000428,120]
[402995580,1769028650945,-281.8,0.000428,120]
[402995581,1769028650954,-600.0,0.000428,120]
[402995582,1769028650963,-150.0,0.000428,120]
[402995583,1769028650972,-150.0,0.000428,120]
[402995584,1769028650982,-150.0,0.000428,120]
[402995585,1769028650991,-150.0,0.000428,120]
[402995586,1769028651001,-150.0,0.000428,120]
[402995587,1769028651010,-150.0,0.000428,120]
[402995588,1769028651020,-150.0,0.000428,120]
[402995589,1769028651030,-150.0,0.000428,120]
[402995590,1769028651039,-150.0,0.000428,120]
[402995591,1769028651049,-150.0,0.000428,120]
[402995592,1769028651058,-150.0,0.000428,120]
[402995593,1769028651067,-150.0,0.000428,120]
[402995594,1769028651076,-150.0,0.000428,120]
[402995595,1769028651085,-150.0,0.000428,120]
[402995596,1769028651093,-150.0,0.000428,120]
[402995597,1769028651103,-150.0,0.000428,120]
[402995598,1769028651112,-150.0,0.000428,120]
[402995599,1769028651120,-150.0,0.000428,60]
[402995600,1769028651130,-150.0,0.000428,60]
[402995601,1769028651139,-150.0,0.000428,60]
[402995602,1769028651148,-150.0,0.000428,60]
[402995603,1769028651158,-150.0,0.000428,60]
[402995604,1769028651167,-150.0,0.000428,60]
[402995605,1769028651176,-150.0,0.000428,60]
[402995606,1769028651186,-150.0,0.000428,60]
[402995607,1769028651195,-250.0,0.000428,50]
[402995608,1769028651204,-250.0,0.000428,120]
[402995609,1769028651213,-250.0,0.000428,120]
[402995610,1769028651222,-250.0,0.000428,120]
[402995611,1769028651232,-250.0,0.000428,120]
[402995612,1769028651241,-359.69,0.000428,30]
[402995613,1769028651250,-1623.0,0.000428,15]
[402995614,1769028651264,-500.0,0.0004285,120]
[402995615,1769028651274,-181.08992329,0.00042852,60]
[402995616,1769028651283,-150.0,0.00042852,60]
[402995617,1769028651292,-541.98804653,0.00042876,120]
[402995618,1769028651302,-500.0,0.00042899,30]
[402995619,1769028651311,-243.3320625,0.000429,120]
[402995620,1769028651320,-224107.49977088,0.000429,7]
[402995621,1769028651329,-500.0,0.00042904,120]
[402995622,1769028651338,-500.0,0.00042959,120]
[402995623,1769028651347,-301.76800696,0.00042975,30]
[402995624,1769028651357,-153.0,0.00043,120]
[402995625,1769028651366,-403.35444073,0.00043,10]
[402995626,1769028651376,-195.29943786,0.00043,120]
[402995627,1769028651385,-164.87,0.00043,2]
[402995628,1769028651395,-226.34924093,0.00043012,10]
[402995629,1769028651405,-500.0,0.00043013,120]
[402995630,1769028651415,-205.55,0.00043014,120]
[402995631,1769028651424,-500.0,0.00043014,120]
[402995632,1769028651432,-221.69937281,0.00043019,10]
[402995633,1769028651441,-195.5815019,0.00043021,8]
[402995634,1769028651450,-1664.06922144,0.00043021,2]
[402995635,1769028651459,-2788.44657257,0.00043021,2]
[402995636,1769028651468,-161.35811053,0.00043024,2]
[402995637,1769028651478,-153.18312806,0.00043024,2]
[402995638,1769028651491,-500.0,0.00043069,120]
[402995639,1769028651500,-154.03031195,0.00043097,109]
[402995640,1769028651509,-1524.41729282,0.00043099,7]
[402995641,1769028651518,-200.0,0.000431,24]
[402995642,1769028651527,-178.331615,0.00043106,120]
[402995643,1769028651536,-782330.0201,0.00043109,30]
[402995644,1769028651545,-1664.06922144,0.0004312,2]
[402995645,1769028651554,-2788.44657257,0.0004312,2]
[402995646,1769028651563,-161.35811051,0.00043122,2]
[402995647,1769028651572,-500.0,0.00043124,120]
[402995648,1769028651581,-500.0,0.00043146,30]
[402995649,1769028651590,-500.0,0.00043146,30]
[402995650,1769028651599,-500.0,0.00043146,30]
[402995651,1769028651609,-900.0,0.00043153,16]
[402995652,1769028651618,-900.0,0.00043153,16]
[402995653,1769028651627,-900.0,0.00043153,16]
[402995654,1769028651636,-900.0,0.00043153,16]
[402995655,1769028651645,-900.0,0.00043153,16]
[402995656,1769028651654,-900.0,0.00043153,16]
[402995657,1769028651663,-900.0,0.00043153,16]
[402995658,1769028651672,-900.0,0.00043153,16]
[402995659,1769028651681,-900.0,0.00043153,16]
[402995660,1769028651690,-900.0,0.00043153,16]
[402995661,1769028651699,-500.0,0.00043178,120]
[402995662,1769028651708,-715.19,0.000432,14]
[402995663,1769028651718,-967.63,0.00043218,30]
[402995664,1769028651727,-612.01,0.00043218,30]
[402995665,1769028651737,-3754.29693723,0.00043219,15]
[402995666,1769028651750,-7092.26785107,0.00043219,15]
[402995667,1769028651759,-161.35811051,0.00043219,2]
[402995668,1769028651768,-1176.57622655,0.00043219,2]
[402995669,1769028651777,-1664.06922144,0.00043219,2]
[402995670,1769028651787,-4201.31215535,0.00043233,2]
[402995671,1769028651796,-500.0,0.00043233,120]
[402995672,1769028651806,-500.0,0.0004327,3]
[402995673,1769028651818,-1000.0,0.0004327,3]
[402995674,1769028651827,-500.0,0.00043287,120]
[402995675,1769028651836,-797.0,0.00043288,120]
[402995676,1769028651845,-500.0,0.00043288,120]
[402995677,1769028651854,-150.0,0.00043292,60]
[402995678,1769028651863,-211.60880611,0.00043298,120]
[402995679,1769028651873,-500.0,0.00043299,30]
[402995680,1769028651882,-160.0,0.000433,120]
[402995681,1769028651892,-250.0,0.000433,30]
[402995682,1769028651901,-250.0,0.000433,30]
[402995683,1769028651910,-250.0,0.000433,30]
[402995684,1769028651919,-250.0,0.000433,30]
[402995685,1769028651928,-250.0,0.000433,30]
[402995686,1769028651937,-250.0,0.000433,30]
[402995687,1769028651947,-250.0,0.000433,30]
[402995688,1769028651956,-250.0,0.000433,30]
[402995689,1769028651965,-250.0,0.000433,30]
[402995690,1769028651981,-250.0,0.000433,30]
[402995691,1769028651992,-250.0,0.000433,30]
[402995692,1769028652001,-250.0,0.000433,30]
[402995693,1769028652011,-250.0,0.000433,30]
[402995694,1769028652020,-250.0,0.000433,30]
[402995695,1769028652029,-250.0,0.000433,30]
[402995696,1769028652039,-250.0,0.000433,30]
[402995697,1769028652051,-250.0,0.000433,30]
[402995698,1769028652060,-250.0,0.000433,30]
[402995699,1769028652070,-250.0,0.000433,30]
[402995700,1769028652079,-250.0,0.000433,30]
[402995701,1769028652088,-250.0,0.000433,30]
[402995702,1769028652097,-250.0,0.000433,30]
[402995703,1769028652106,-250.0,0.000433,30]
[402995704,1769028652115,-250.0,0.000433,30]
[402995705,1769028652125,-250.0,0.000433,30]
[402995706,1769028652134,-250.0,0.000433,30]
[402995707,1769028652144,-250.0,0.000433,30]
[402995708,1769028652153,-250.0,0.000433,30]
[402995709,1769028652163,-250.0,0.000433,30]
[402995710,1769028652172,-250.0,0.000433,30]
[402995711,1769028652181,-250.0,0.000433,30]
[402995712,1769028652191,-250.0,0.000433,30]
[402995713,1769028652201,-250.0,0.000433,30]
[402995714,1769028652210,-250.0,0.000433,30]
[402995715,1769028652220,-250.0,0.000433,30]
[402995716,1769028652230,-250.0,0.000433,30]
[402995717,1769028652240,-250.0,0.000433,30]
[402995718,1769028652249,-250.0,0.000433,30]
[402995719,1769028652259,-250.0,0.000433,30]
[402995720,1769028652268,-250.0,0.000433,30]
[402995721,1769028652278,-250.0,0.000433,30]
[402995722,1769028652288,-250.0,0.000433,30]
[402995723,1769028652301,-250.0,0.000433,30]
[402995724,1769028652311,-250.0,0.000433,30]
[402995725,1769028652319,-250.0,0.000433,30]
[402995726,1769028652329,-250.0,0.000433,30]
[402995727,1769028652338,-250.0,0.000433,30]
[402995728,1769028652347,-250.0,0.000433,30]
[402995729,1769028652356,-250.0,0.000433,30]
[402995730,1769028652366,-250.0,0.000433,30]
[402995731,1769028652375,-250.0,0.000433,30]
[402995732,1769028652384,-250.0,0.000433,30]
[402995733,1769028652393,-250.0,0.000433,30]
[402995734,1769028652403,-151.7,0.000433,30]
[402995735,1769028652411,-150.0,0.000433,65]
[402995736,1769028652420,-1524.41729282,0.00043309,7]
[402995737,1769028652430,-178.331615,0.00043316,120]
[402995738,1769028652439,-370.2528266,0.00043318,7]
[402995739,1769028652447,-500.0,0.00043319,120]
[402995740,1769028652457,-500.0,0.00043319,120]
[402995741,1769028652466,-500.0,0.00043319,120]
[402995742,1769028652475,-500.0,0.00043319,120]
[402995743,1769028652484,-500.0,0.00043319,120]
[402995744,1769028652494,-500.0,0.00043319,120]
[402995745,1769028652502,-500.0,0.00043319,120]
[402995746,1769028652511,-500.0,0.00043319,120]
[402995747,1769028652520,-500.0,0.00043319,120]
[402995748,1769028652529,-500.0,0.00043319,120]
[402995749,1769028652539,-500.0,0.00043319,120]
[402995750,1769028652547,-500.0,0.00043319,120]
[402995751,1769028652556,-500.0,0.00043319,120]
[402995752,1769028652565,-500.0,0.00043319,120]
[402995753,1769028652574,-500.0,0.00043319,120]
[402995754,1769028652583,-500.0,0.00043319,120]
[402995755,1769028652591,-500.0,0.00043319,120]
[402995756,1769028652601,-500.0,0.00043319,120]
[402995757,1769028652610,-500.0,0.00043319,120]
[402995758,1769028652619,-500.0,0.00043319,120]
[402995759,1769028652628,-152.533101,0.00043319,120]
[402995760,1769028652637,-151.0,0.00043319,120]
[402995761,1769028652647,-151.0,0.00043319,120]
[402995762,1769028652656,-151.0,0.00043319,120]
[402995763,1769028652665,-151.0,0.00043319,120]
[402995764,1769028652674,-151.0,0.00043319,120]
[402995765,1769028652683,-172.175422,0.00043319,120]
[402995766,1769028652692,-151.0,0.00043319,60]
[402995767,1769028652702,-273.864674,0.00043319,60]
[402995768,1769028652712,-151.0,0.00043319,120]
[402995769,1769028652721,-151.0,0.00043319,120]
[402995770,1769028652737,-151.0,0.00043319,120]
[402995771,1769028652751,-151.0,0.00043319,120]
[402995772,1769028652760,-151.0,0.00043319,120]
[402995773,1769028652769,-151.0,0.00043319,120]
[402995774,1769028652778,-151.0,0.00043319,120]
[402995775,1769028652790,-151.0,0.00043319,120]
[402995776,1769028652800,-151.0,0.00043319,120]
[402995777,1769028652809,-151.0,0.00043319,120]
[402995778,1769028652822,-151.0,0.00043319,120]
[402995779,1769028652832,-151.0,0.00043319,120]
[402995780,1769028652841,-151.0,0.00043319,120]
[402995781,1769028652850,-151.0,0.00043319,120]
[402995782,1769028653036,-151.0,0.00043319,120]
[402995783,1769028653046,-151.0,0.00043319,120]
[402995784,1769028653056,-257.555882,0.00043319,120]
[402995785,1769028653066,-287.631152,0.00043319,120]
[402995786,1769028653076,-287.631152,0.00043319,120]
[402995787,1769028653086,-287.631152,0.00043319,120]
[402995788,1769028653095,-287.631152,0.00043319,120]
[402995789,1769028653105,-287.631152,0.00043319,120]
[402995790,1769028653115,-287.631152,0.00043319,120]
[402995791,1769028653124,-287.631152,0.00043319,120]
[402995792,1769028653134,-287.631152,0.00043319,120]
[402995793,1769028653143,-287.631152,0.00043319,120]
[402995794,1769028653153,-287.631152,0.00043319,120]
[402995795,1769028653163,-287.631152,0.00043319,120]
[402995796,1769028653173,-287.631152,0.00043319,120]
[402995797,1769028653183,-287.631152,0.00043319,120]
[402995798,1769028653193,-287.631152,0.00043319,120]
[402995799,1769028653203,-287.631152,0.00043319,120]
[402995800,1769028653212,-287.631152,0.00043319,120]
[402995801,1769028653223,-287.631152,0.00043319,120]
[402995802,1769028653233,-287.631152,0.00043319,120]
[402995803,1769028653243,-287.631152,0.00043319,120]
[402995804,1769028653253,-287.631159,0.00043319,120]
[402995805,1769028653263,-151.0,0.00043319,120]
[402995806,1769028653273,-152.812964,0.00043319,120]
[402995807,1769028653282,-151.0,0.00043319,120]
[402995808,1769028653292,-151.0,0.00043319,120]
[402995809,1769028653301,-151.0,0.00043319,120]
[402995810,1769028653310,-184.194961,0.00043319,120]
[402995811,1769028653320,-238.113276,0.00043319,120]
[402995812,1769028653330,-238.113276,0.00043319,120]
[402995813,1769028653339,-238.113276,0.00043319,120]
[402995814,1769028653352,-238.113276,0.00043319,120]
[402995815,1769028653362,-238.113276,0.00043319,120]
[402995816,1769028653375,-238.113276,0.00043319,120]
[402995817,1769028653385,-238.113276,0.00043319,120]
[402995818,1769028653394,-238.113276,0.00043319,120]
[402995819,1769028653404,-238.113276,0.00043319,120]
[402995820,1769028653413,-238.113276,0.00043319,120]
[402995821,1769028653424,-238.113276,0.00043319,120]
[402995822,1769028653433,-238.113276,0.00043319,120]
[402995823,1769028653442,-238.113276,0.00043319,120]
[402995824,1769028653451,-238.113276,0.00043319,120]
[402995825,1769028653462,-238.113276,0.00043319,120]
[402995826,1769028653471,-238.113276,0.00043319,120]
[402995827,1769028653480,-238.113276,0.00043319,120]
[402995828,1769028653490,-238.113276,0.00043319,120]
[402995829,1769028653499,-238.113276,0.00043319,120]
[402995830,1769028653509,-238.113282,0.00043319,120]
[402995831,1769028653521,-209.759036,0.00043319,120]
[402995832,1769028653530,-209.759036,0.00043319,120]
[402995833,1769028653540,-209.759036,0.00043319,120]
[402995834,1769028653549,-209.759036,0.00043319,120]
[402995835,1769028653559,-209.759036,0.00043319,120]
[402995836,1769028653568,-209.759036,0.00043319,120]
[402995837,1769028653578,-151.0,0.00043319,120]
[402995838,1769028653587,-209.759036,0.00043319,120]
[402995839,1769028653596,-151.0,0.00043319,120]
[402995840,1769028653606,-209.759036,0.00043319,120]
[402995841,1769028653615,-151.0,0.00043319,120]
[402995842,1769028653624,-209.759036,0.00043319,120]
[402995843,1769028653634,-151.0,0.00043319,120]
[402995844,1769028653644,-209.759036,0.00043319,120]
[402995845,1769028653653,-151.0,0.00043319,120]
[402995846,1769028653662,-209.759044,0.00043319,120]
[402995847,1769028653671,-151.0,0.00043319,120]
[402995848,1769028653681,-241.079779,0.00043319,120]
[402995849,1769028653690,-180.897935,0.00043319,120]
[402995850,1769028653699,-159.131376,0.00043319,120]
[402995851,1769028653708,-151.0,0.00043319,120]
[402995852,1769028653718,-151.0,0.00043319,120]
[402995853,1769028653727,-151.0,0.00043319,120]
[402995854,1769028653737,-151.0,0.00043319,120]
[402995855,1769028653751,-151.0,0.00043319,120]
[402995856,1769028653760,-151.0,0.00043319,120]
[402995857,1769028653769,-151.0,0.00043319,120]
[402995858,1769028653779,-151.0,0.00043319,120]
[402995859,1769028653789,-151.0,0.00043319,120]
[402995860,1769028653798,-151.0,0.00043319,120]
[402995861,1769028653807,-151.0,0.00043319,120]
[402995862,1769028653818,-151.0,0.00043319,120]
[402995863,1769028653827,-151.0,0.00043319,120]
[402995864,1769028653837,-151.0,0.00043319,120]
[402995865,1769028653846,-151.0,0.00043319,120]
[402995866,1769028653856,-253.563068,0.00043319,120]
[402995867,1769028653865,-316.939799,0.00043319,30]
[402995868,1769028653874,-316.939799,0.00043319,30]
[402995869,1769028653883,-316.939799,0.00043319,30]
[402995870,1769028653893,-316.939799,0.00043319,30]
[402995871,1769028653902,-316.939799,0.00043319,30]
[402995872,1769028653911,-316.939799,0.00043319,30]
[402995873,1769028653920,-316.939799,0.00043319,30]
[402995874,1769028653930,-316.939799,0.00043319,30]
[402995875,1769028653939,-316.939799,0.00043319,30]
[402995876,1769028653947,-316.939799,0.00043319,30]
[402995877,1769028653957,-316.939799,0.00043319,30]
[402995878,1769028653966,-316.939799,0.00043319,30]
[402995879,1769028653975,-316.939799,0.00043319,30]
[402995880,1769028653985,-316.939799,0.00043319,30]
[402995881,1769028653994,-316.939799,0.00043319,30]
[402995882,1769028654003,-316.939799,0.00043319,30]
[402995883,1769028654012,-316.939799,0.00043319,30]
[402995884,1769028654022,-316.939799,0.00043319,30]
[402995885,1769028654031,-316.939799,0.00043319,30]
[402995886,1769028654041,-316.939794,0.00043319,30]
[402995887,1769028654051,-151.0,0.00043319,15]
[402995888,1769028654060,-151.0,0.00043319,15]
[402995889,1769028654069,-151.0,0.00043319,15]
[402995890,1769028654079,-151.0,0.00043319,15]
[402995891,1769028654088,-151.0,0.00043319,15]
[402995892,1769028654097,-151.0,0.00043319,120]
[402995893,1769028654107,-151.0,0.00043319,15]
[402995894,1769028654116,-151.0,0.00043319,120]
[402995895,1769028654126,-151.0,0.00043319,15]
[402995896,1769028654135,-151.0,0.00043319,120]
[402995897,1769028654145,-151.0,0.00043319,15]
[402995898,1769028654154,-197.625793,0.00043319,15]
[402995899,1769028654163,-151.0,0.00043319,120]
[402995900,1769028654173,-151.0,0.00043319,120]
[402995901,1769028654182,-151.0,0.00043319,120]
[402995902,1769028654192,-151.0,0.00043319,120]
[402995903,1769028654201,-151.0,0.00043319,120]
[402995904,1769028654211,-204.158208,0.00043319,120]
[402995905,1769028654220,-162.763419,0.00043319,120]
[402995906,1769028654230,-151.0,0.00043319,120]
[402995907,1769028654240,-151.0,0.00043319,120]
[402995908,1769028654250,-254.633676,0.00043319,120]
[402995909,1769028654259,-230.291185,0.00043319,120]
[402995910,1769028654270,-230.291185,0.00043319,120]
[402995911,1769028654280,-230.291185,0.00043319,120]
[402995912,1769028654290,-230.291185,0.00043319,120]
[402995913,1769028654300,-230.291185,0.00043319,120]
[402995914,1769028654310,-230.291185,0.00043319,120]
[402995915,1769028654320,-230.291185,0.00043319,120]
[402995916,1769028654330,-230.291185,0.00043319,120]
[402995917,1769028654339,-230.291185,0.00043319,120]
[402995918,1769028654349,-230.291185,0.00043319,120]
[402995919,1769028654358,-230.291185,0.00043319,120]
[402995920,1769028654367,-230.291185,0.00043319,120]
[402995921,1769028654376,-230.291185,0.00043319,120]
[402995922,1769028654386,-230.291185,0.00043319,120]
[402995923,1769028654395,-230.291185,0.00043319,120]
[402995924,1769028654404,-230.291185,0.00043319,120]
[402995925,1769028654413,-230.291185,0.00043319,120]
[402995926,1769028654422,-230.291185,0.00043319,120]
[402995927,1769028654431,-230.291185,0.00043319,120]
[402995928,1769028654440,-230.291177,0.00043319,120]
[402995929,1769028654449,-151.0,0.00043319,120]
[402995930,1769028654458,-151.0,0.00043319,120]
[402995931,1769028654467,-151.0,0.00043319,120]
[402995932,1769028654477,-151.0,0.00043319,120]
[402995933,1769028654487,-181.890872,0.00043319,120]
[402995934,1769028654495,-151.0,0.00043319,120]
[402995935,1769028654504,-151.0,0.00043319,120]
[402995936,1769028654513,-151.0,0.00043319,120]
[402995937,1769028654522,-151.0,0.00043319,120]
[402995938,1769028654531,-151.0,0.00043319,120]
[402995939,1769028654541,-151.0,0.00043319,120]
[402995940,1769028654550,-176.796694,0.00043319,120]
[402995941,1769028654560,-151.0,0.00043319,120]
[402995942,1769028654569,-151.0,0.00043319,120]
[402995943,1769028654578,-151.0,0.00043319,120]